[Event "Hungarian U20 Junior-ch Men 2024"]
[Site "Budapest"]
[Date "2024.03.18"]
[Round "8.4"]
[White "Kolimar, Kristof Pal"]
[Black "Tancsa, Tamas"]
[Result "1/2-1/2"]
[ECO "A40"]
[WhiteElo "2282"]
[BlackElo "2273"]
[Annotator "RC"]
[PlyCount "122"]
[EventDate "2024.03.10"]
[EventType "tourn"]
[EventCountry "HUN"]
[SourceTitle "playchess.com"]
[Source "ChessBase"]
[SourceQuality "1"]
[TimeControl "40/5400+30:1800+30"]

1. d4 {[%emt 0:00:35]} Nf6 {[%emt 0:00:39]} 2. c4 {[%emt 0:00:04]} e6 {[%emt 0:00:04]} 3. g3 {[%emt 0:00:06]} Bb4+ {[%emt 0:00:05]} 4. Bd2 {[%emt 0:00:05]} c5 {[%emt 0:00:03]} 5. Bxb4 {[%emt 0:00:07]} cxb4 {[%emt 0:00:02]} 6. Bg2 {[%emt 0:00:09]} O-O {[%emt 0:00:19]} 7. e3 {[%emt 0:00:08]} d6 {[%emt 0:00:43]} 8. Ne2 {[%emt 0:00:36]} e5 {[%emt 0:01:31]} 9. O-O {[%emt 0:01:39]} Nc6 {[%emt 0:00:52]} 10. a3 {[%emt 0:02:51]} Qc7 {[%emt 0:03:27]} 11. h3 {[%emt 0:11:14]} Rd8 {[%emt 0:05:45]} 12. axb4 {[%emt 0:06:30]} Nxb4 {[%emt 0:00:55]} 13. Qb3 {[%emt 0:01:18]} a5 {[%emt 0:01:21]} 14. Na3 {[%emt 0:01:16]} Be6 {[%emt 0:01:39]} 15. Rfc1 {[%emt 0:03:59]} Rac8 {[%emt 0:08:12]} 16. Qd1 {[%emt 0:10:23]} b6 {[%emt 0:15:57]} 17. g4 {[%emt 0:07:06]} Qe7 {[%emt 0:05:02]} 18. d5 {[%emt 0:03:12]} Bd7 {[%emt 0:00:32]} 19. Ng3 {[%emt 0:00:39]} h6 {[%emt 0:02:20]} 20. Rc3 {[%emt 0:05:03]} Rc5 {[%emt 0:03:47]} 21. Nb1 {[%emt 0:04:35]} Rdc8 {[%emt 0:09:00]} 22. Nd2 {[%emt 0:00:12]} g6 {[%emt 0:11:07]} 23. Bf1 {[%emt 0:03:37]} Kh7 {[%emt 0:01:54]} 24. Qf3 {[%emt 0:04:00]} Rf8 {[%emt 0:05:14]} 25. Nde4 {[%emt 0:07:16]} Nxe4 {[%emt 0:02:19]} 26. Nxe4 {[%emt 0:00:04]} Rc7 {[%emt 0:00:26]} 27. Qf6 {[%emt 0:00:17]} Qxf6 {[%emt 0:00:07]} 28. Nxf6+ {[%emt 0:00:02]} Kg7 {[%emt 0:00:07]} 29. Ne4 {[%emt 0:00:03]} f5 {[%emt 0:00:26]} 30. Nxd6 {[%emt 0:02:23]} Rf6 {[%emt 0:08:19]} 31. Nb5 {[%emt 0:00:37]} Bxb5 {[%emt 0:00:34]} 32. cxb5 {[%emt 0:00:06]} Rd7 {[%emt 0:02:26]} 33. Rac1 {[%emt 0:05:27]} Rfd6 {[%emt 0:03:36]} 34. Rc8 {[%emt 0:03:26]} Nxd5 {[%emt 0:02:55]} 35. Rb8 {[%emt 0:03:40]} Ne7 {[%emt 0:00:08]} 36. Bc4 {[%emt 0:08:03]} e4 {[%emt 0:01:50]} 37. b3 {[%emt 0:01:20]} Rc7 {[%emt 0:00:34]} 38. gxf5 {[%emt 0:00:29]} gxf5 {[%emt 0:00:23]} 39. Kh2 {[%emt 0:00:10]} Ng6 {[%emt 0:01:15]} 40. Rg1 {[%emt 0:00:00]} Kf6 {[%emt 0:00:00]} 41. Rg8 {[%emt 0:10:44]} Rg7 {[%emt 0:14:03]} 42. Re8 {[%emt 0:01:07]} Rgd7 {[%emt 0:06:05]} 43. Rg3 {[%emt 0:03:44]} Rd8 {[%emt 0:02:08]} 44. Rxd8 {[%emt 0:01:28]} Rxd8 {[%emt 0:00:59]} 45. f4 {[%emt 0:00:36]} Rd2+ {[%emt 0:03:21]} 46. Rg2 {[%emt 0:00:08]} Rxg2+ {[%emt 0:00:37]} 47. Kxg2 {[%emt 0:00:06]} h5 {[%emt 0:00:25]} 48. Kf2 {[%emt 0:00:53]} h4 {[%emt 0:00:56]} 49. Ke2 {[%emt 0:01:45]} Ke7 {[%emt 0:00:20]} 50. Kd2 {[%emt 0:00:31]} Kd6 {[%emt 0:01:21]} 51. Kc3 {[%emt 0:00:07]} Kc5 {[%emt 0:00:14]} 52. Be6 {[%emt 0:00:13]} Ne7 {[%emt 0:00:25]} 53. Bd7 {[%emt 0:00:08]} Kd6 {[%emt 0:03:32]} 54. Be8 {[%emt 0:00:10]} Kc5 {[%emt 0:02:28]} 55. Bd7 {[%emt 0:00:06]} Kd5 {[%emt 0:00:05]} 56. Be8 {[%emt 0:05:11]} Nc8 {[%emt 0:04:51]} 57. Bd7 {[%emt 0:00:28]} Nd6 {[%emt 0:00:34]} 58. Kc2 {[%emt 0:02:41]} Kc5 {[%emt 0:00:09]} 59. Kd2 {[%emt 0:02:18]} Kb4 {[%emt 0:00:12]} 60. Kc2 {[%emt 0:00:04]} Ka3 {[%emt 0:01:18]} 61. Kc3 {[%emt 0:01:06]} Ka2 {[%emt 0:00:16]} 1/2-1/2

[Event "Hungarian U20 Junior-ch Men 2024"]
[Site "Budapest"]
[Date "2024.03.18"]
[Round "8.5"]
[White "Bodrogi, Bendeguz"]
[Black "Palczert, Matyas"]
[Result "0-1"]
[ECO "A04"]
[WhiteElo "2316"]
[BlackElo "2297"]
[Annotator "TA"]
[PlyCount "84"]
[EventDate "2024.03.10"]
[EventType "tourn"]
[EventCountry "HUN"]
[SourceTitle "playchess.com"]
[Source "ChessBase"]
[SourceQuality "1"]
[TimeControl "40/5400+30:1800+30"]

{[%evp 9,84,-10,-14,6,-7,-6,-3,-8,-20,-40,-8,-17,0,-17,0,-22,-24,-38,-40,-45,-48,-55,-55,-60,-55,-55,-33,-84,-83,-81,-82,-91,-87,-97,-78,-145,-123,-104,-54,-63,-37,-114,-104,-95,-107,-102,-104,-158,-144,-223,-184,-183,-180,-147,-143,-408,-402,-521,-515,-502,-464,-530,-530,-514,-522,-516,-513,-899,-967,-912,-849,-993,-856,-1472,-1394,-1145,-1127]} 1. Nf3 {[%emt 0:01:04]} c5 {[%emt 0:00:44]} 2. g3 {[%emt 0:02:52]} Nc6 {[%emt 0:04:15]} 3. Bg2 {[%emt 0:00:42]} g6 {[%emt 0:00:31]} 4. c3 {[%emt 0:07:03]} e5 {[%emt 0:05:30][%cal Be7e5,Be5e4][%mdl 32]} 5. d4 {[%emt 0:01:19]} cxd4 {[%emt 0:01:52]} 6. cxd4 {[%emt 0:00:08]} e4 {[%emt 0:00:27]} 7. Ne5 {[%emt 0:00:14]} d5 {[%emt 0:00:52]} 8. Nxc6 {[%emt 0:15:23] The position is equal.} bxc6 {[%emt 0:00:13]} 9. Nd2 {[%emt 0:00:05]} Bg7 {[%emt 0:06:13]} 10. Nb3 {[%emt 0:00:20]} Nf6 {[%emt 0:01:00]} 11. Bd2 {[%emt 0:07:12]} O-O {[%emt 0:02:18]} 12. Qc1 {[%emt 0:01:28]} Qb6 {[%emt 0:03:46]} 13. O-O {[%emt 0:03:56]} a5 $1 {[%emt 0:05:33]} 14. Qc5 {[%emt 0:11:30]} Qxc5 {[%emt 0:05:06]} 15. Nxc5 {[%emt 0:00:21]} Nd7 {[%emt 0:00:46]} 16. Nxd7 {[%emt 0:09:24]} Bxd7 {[%emt 0:00:08]} 17. Bc3 {[%emt 0:00:14]} c5 {[%emt 0:05:20]} 18. Rad1 {[%emt 0:12:04]} (18. dxc5 $15 Bxc3 19. bxc3) 18... c4 $17 {[%emt 0:05:54]} 19. f3 {[%emt 0:00:14]} f5 {[%emt 0:01:23]} 20. g4 {[%emt 0:17:00]} Rfe8 {[%emt 0:03:18]} (20... fxg4 21. fxe4 dxe4 22. Bxe4 $16) 21. gxf5 {[%emt 0:02:18]} Bxf5 {[%emt 0:02:23]} 22. b3 {[%emt 0:01:27]} (22. a4 $142) 22... cxb3 {[%emt 0:03:14]} 23. axb3 {[%emt 0:00:08]} h5 {[%emt 0:02:22]} (23... Reb8 $17 24. Rb1 (24. fxe4 dxe4 25. Rb1 Rc8 $17) 24... Rc8 25. fxe4 dxe4 (25... Rxc3 26. exf5 Bxd4+ 27. Kh1 $14)) 24. e3 $15 {[%emt 0:01:51]} Bh6 {[%emt 0:00:41] [#] White must now prevent ...Reb8.} 25. f4 {[%emt 0:01:16]} (25. Bd2 $1 $15) 25... Reb8 {[%emt 0:02:40]} 26. Rb1 {[%emt 0:00:20]} Bf8 {[%emt 0:02:02]} 27. Rfc1 {[%emt 0:00:22]} Ba3 $36 {[%emt 0:02:33][%mdl 2048] Black is in control.} 28. Rf1 {[%emt 0:00:17]} (28. Bb2 $142 Bd6 (28... Rxb3 29. Bxa3 Rxa3 30. Rb7 $11) 29. Bc3) 28... Rc8 $17 {[%emt 0:01:27]} 29. Be1 {[%emt 0:00:46] White is weak on the light squares} (29. Bd2 $17) 29... Rc1 {[%emt 0:07:53]} ({Much less strong is} 29... Bc1 30. Bf2 Bd2 31. Rb2) 30. Bd2 {[%emt 0:00:05]} Rc2 {[%emt 0:01:05]} 31. Rf2 {[%emt 0:00:09]} Rac8 {[%emt 0:04:58] Black has more active pieces.} 32. Bxa5 $2 {[%emt 0:03:28][%mdl 8192] White does not recover from this.} (32. Ra1 $17 {is a better defense.} Be7 33. Bf1) 32... Bc1 $19 {[%emt 0:00:30]} 33. Rxc1 {[%emt 0:01:04]} Rxc1+ {[%emt 0:00:06] Black is clearly winning.} 34. Rf1 {[%emt 0:00:01]} R1c2 {[%emt 0:01:21]} 35. Rf2 {[%emt 0:00:43]} Rxf2 {[%emt 0:00:29]} 36. Kxf2 {[%emt 0:00:04][%mdl 4096] Endgame. KRB-KB} Rc2+ {[%emt 0:00:07]} 37. Kf1 {[%emt 0:00:03]} Bg4 {[%emt 0:00:22]} 38. h4 {[%emt 0:01:34]} (38. Be1 $142 Bf3 39. Bh3 Rxh2 40. Be6+ Kg7 41. Kg1 Rh1+ 42. Kf2) 38... Re2 {[%emt 0:01:44]} 39. b4 {[%emt 0:00:02]} Rxe3 {[%emt 0:00:27] Strongly threatening ...Rb3.} 40. Bc7 {[%emt 0:00:00]} Rb3 {[%emt 0:00:00]} 41. Bd6 {[%emt 0:00:13]} Kf7 {[%emt 0:00:38] [#] Threatens to win with ...Ke6.} 42. Kg1 {[%emt 0:00:26]} Ke6 {[%emt 0:00:10] Weighted Error Value: White=0.58/Black=0.06 (flawless) .  Loses game:     	White=1     	---        Mistake:       	White=6     	Black=1      Inaccurate:     	---       	Black=2      OK:         	White=6     	Black=13     Best:        	White=2     	Black=6      Strong:       	---       	Black=1} 0-1

[Event "Hungarian U20 Junior-ch Men 2024"]
[Site "Budapest"]
[Date "2024.03.19"]
[Round "9.1"]
[White "Palczert, Matyas"]
[Black "Karacsonyi, Gellert"]
[Result "0-1"]
[ECO "A14"]
[WhiteElo "2297"]
[BlackElo "2386"]
[Annotator "TA"]
[PlyCount "96"]
[EventDate "2024.03.10"]
[EventType "tourn"]
[EventCountry "HUN"]
[SourceTitle "playchess.com"]
[Source "ChessBase"]
[SourceQuality "1"]
[TimeControl "40/5400+30:1800+30"]

{[%evp 16,96,15,14,21,7,2,1,0,0,0,0,0,0,0,0,0,-8,-3,-4,6,-21,12,-10,7,-69,-18,-58,-9,-50,-47,-49,-54,-81,-80,-79,-48,-58,-58,-56,-58,-94,-79,-81,-9,-45,-44,-78,-89,-100,-116,-115,-108,-141,-127,-230,-231,-300,-291,-293,-302,-389,-384,-369,-383,-426,-406,-428,-439,-495,-488,-486,-485,-606,-393,-587,-583,-811,-831,-1648,-1593,-29998,-29999]} 1. c4 {[%emt 0:00:50]} e6 {[%emt 0:00:38]} 2. Nf3 {[%emt 0:00:10]} d5 {[%emt 0:00:07]} 3. g3 {[%emt 0:00:39]} Nf6 {[%emt 0:00:06]} 4. Bg2 {[%emt 0:00:09]} Be7 {[%emt 0:00:14]} 5. O-O {[%emt 0:01:00]} O-O {[%emt 0:00:05]} 6. d4 {[%emt 0:00:22]} c6 {[%emt 0:00:06]} 7. Nc3 {[%emt 0:00:59]} a5 {[%emt 0:00:07]} 8. b3 {[%emt 0:05:46]} b6 {[%emt 0:01:34][%cal Bb7b6,Bb6b5,Bb5b4][%mdl 32]} 9. Bb2 {[%emt 0:01:18]} Ba6 {[%emt 0:00:55]} 10. Nd2 {[%emt 0:06:53]} b5 {[%emt 0:02:19]} 11. c5 {[%emt 0:10:55]} b4 {[%emt 0:00:24] The position is equal.} 12. Na4 {[%emt 0:01:42]} Nbd7 {[%emt 0:02:09]} 13. Re1 {[%emt 0:04:49]} Qc7 {[%emt 0:01:10]} 14. Qc2 {[%emt 0:03:45]} Bb5 {[%emt 0:06:30]} 15. Rac1 {[%emt 0:11:18]} Rfe8 {[%emt 0:03:11]} 16. e3 {[%emt 0:04:44]} Bf8 {[%emt 0:00:31]} 17. f4 {[%emt 0:04:01]} g6 {[%emt 0:03:52]} 18. h3 {[%emt 0:04:50]} Bg7 {[%emt 0:04:49]} 19. Bf3 {[%emt 0:03:10]} Kh8 {[%emt 0:04:59][%cal Og6g5]} 20. Ba1 {[%emt 0:04:19]} ({White should try} 20. Nf1 $11) 20... Ng8 {[%emt 0:02:01]} (20... g5 $15) 21. Nb2 {[%emt 0:05:18]} f6 {[%emt 0:02:13]} (21... Ne7 $15) 22. Bg2 {[%emt 0:05:00]} e5 {[%emt 0:03:28]} 23. dxe5 {[%emt 0:02:57]} fxe5 {[%emt 0:00:56]} 24. Nd3 {[%emt 0:00:36]} Bxd3 {[%emt 0:13:01]} 25. Qxd3 {[%emt 0:00:08]} e4 {[%emt 0:00:09]} 26. Bxg7+ {[%emt 0:00:19]} Kxg7 {[%emt 0:00:04]} 27. Qd4+ {[%emt 0:00:45]} Ngf6 {[%emt 0:02:44]} 28. g4 {[%emt 0:01:41] [#]} Kg8 $1 {[%emt 0:04:47]} 29. Nf1 {[%emt 0:01:57]} Qd8 {[%emt 0:03:30]} ({Black should play} 29... Re7 $17) 30. Ng3 {[%emt 0:03:00]} Nf8 {[%emt 0:00:51]} 31. Qb2 {[%emt 0:02:23]} N6d7 {[%emt 0:00:32] White is now going downhill.} 32. Ne2 {[%emt 0:05:30]} Ne6 {[%emt 0:06:13]} 33. Nd4 {[%emt 0:02:17]} Qf6 {[%emt 0:02:53]} 34. g5 {[%emt 0:00:59]} Qg7 {[%emt 0:00:06] And now ...Nxd4 would win.} 35. Qd2 {[%emt 0:01:10]} (35. Red1 $17) 35... Nxd4 $19 {[%emt 0:01:17]} (35... Ndxc5 36. Nxe6 (36. Nxc6 Nd3 $17) 36... Nxe6 37. h4 $17 (37. Rxc6 Rad8 $11)) (35... Nexc5 36. Bf1 (36. Nxc6 Nd3 $11) 36... Rac8 37. h4 $11) 36. Qxd4 {[%emt 0:01:52]} Qxd4 {[%emt 0:02:28]} 37. exd4 {[%emt 0:00:06] [#]} Nf8 $1 {[%emt 0:00:12]} 38. Kf2 {[%emt 0:00:53]} Ne6 {[%emt 0:00:03][%csl LRd4,LRf4]} 39. Ke3 {[%emt 0:00:04]} Rf8 {[%emt 0:00:04][%cal Oa5a4]} 40. Rf1 {[%emt 0:00:00]} Ng7 {[%emt 0:00:00]} 41. Rfd1 {[%emt 0:04:41]} Ra7 {[%emt 0:05:08]} ({Don't do} 41... Nf5+ 42. Kf2 $19) 42. Rc2 {[%emt 0:05:55]} Nf5+ {[%emt 0:01:15]} 43. Kf2 {[%emt 0:00:48]} Raf7 {[%emt 0:00:35]} 44. Bf1 {[%emt 0:00:31]} Ng7 {[%emt 0:00:34]} 45. Be2 {[%emt 0:01:30]} (45. Kg1 {was worth a try.}) 45... Rxf4+ {[%emt 0:00:22]} 46. Ke3 {[%emt 0:00:15]} Rf2 {[%emt 0:02:49]} 47. Rdc1 {[%emt 0:00:32]} R8f4 {[%emt 0:00:26] ( -> ...Nf5+)} 48. Bg4 {[%emt 0:00:41]} Nf5+ {[%emt 0:00:07] Weighted Error Value: White=0.68/Black=0.14 (very precise) .  Mistake:       	White=3     	Black=3      Inaccurate:     	White=10    	Black=3      OK:         	White=9     	Black=15     Best:        	White=1     	Black=3      Strong:       	---       	Black=2} 0-1

[Event "Hungarian U20 Junior-ch Men 2024"]
[Site "Budapest"]
[Date "2024.03.19"]
[Round "9.2"]
[White "Tancsa, Tamas"]
[Black "Bodrogi, Bendeguz"]
[Result "1/2-1/2"]
[ECO "B10"]
[WhiteElo "2273"]
[BlackElo "2316"]
[Annotator "TA"]
[PlyCount "60"]
[EventDate "2024.03.10"]
[EventType "tourn"]
[EventCountry "HUN"]
[SourceTitle "playchess.com"]
[Source "ChessBase"]
[SourceQuality "1"]
[TimeControl "40/5400+30:1800+30"]

{[%evp 9,60,12,10,3,20,13,25,-10,8,-12,18,-3,0,-7,0,0,0,-7,0,-12,-22,-15,0,-23,0,0,0,0,0,0,0,0,0,-4,0,-20,-14,-14,0,0,0,0,0,0,0,0,0,0,0,0,0,0,0]} 1. e4 {[%emt 0:00:37]} c6 {[%emt 0:01:12]} 2. Nf3 {[%emt 0:00:24][%cal Bg1f3,Bf3d2,Bd2c4][%mdl 32]} d5 {[%emt 0:00:13]} 3. d3 {[%emt 0:00:03]} dxe4 {[%emt 0:00:08]} 4. dxe4 {[%emt 0:00:05]} Qxd1+ {[%emt 0:00:13]} 5. Kxd1 {[%emt 0:00:05]} Nf6 {[%emt 0:00:07]} 6. Nfd2 {[%emt 0:00:02]} h5 {[%emt 0:00:48]} 7. h4 {[%emt 0:00:04]} Ng4 {[%emt 0:13:59]} 8. Ke1 {[%emt 0:00:04] White has an edge.} g6 {[%emt 0:12:36]} 9. a4 {[%emt 0:07:35]} Bh6 {[%emt 0:08:18]} 10. Nc3 {[%emt 0:05:56]} Be6 {[%emt 0:05:17]} 11. Nc4 {[%emt 0:03:34]} Bxc1 {[%emt 0:00:24]} 12. Rxc1 {[%emt 0:00:07]} Nd7 {[%emt 0:00:34]} 13. b3 {[%emt 0:01:13]} a5 {[%emt 0:03:48]} 14. Be2 {[%emt 0:02:33]} Bxc4 {[%emt 0:02:00]} 15. Bxc4 {[%emt 0:00:55]} e5 {[%emt 0:00:19]} 16. Rd1 {[%emt 0:01:17][%cal Oc4f7] [#] aiming for Bxf7+!} Nb6 {[%emt 0:03:32]} 17. Be2 {[%emt 0:06:17] The position is equal.} Nf6 {[%emt 0:01:19][%cal Bg4f6,Bf6d7,Bd7c5][%mdl 32]} 18. f3 {[%emt 0:01:37]} Ke7 {[%emt 0:00:11]} 19. Kf2 {[%emt 0:00:10]} Rad8 {[%emt 0:03:52]} 20. Ke3 {[%emt 0:03:49]} Nfd7 {[%emt 0:03:24]} 21. Rd2 {[%emt 0:00:49]} Nc5 {[%emt 0:00:11]} 22. Rhd1 {[%emt 0:00:10]} Rxd2 {[%emt 0:00:58]} 23. Rxd2 {[%emt 0:00:14]} Ne6 {[%emt 0:04:04]} 24. Bd3 {[%emt 0:14:18]} Rd8 {[%emt 0:06:53]} 25. g3 {[%emt 0:01:39]} Rd6 {[%emt 0:03:17]} 26. f4 {[%emt 0:04:57]} Nd7 {[%emt 0:00:13]} 27. Nd1 {[%emt 0:00:38]} Nf6 {[%emt 0:01:13] [#] Strongly threatening ...Ng4+.} 28. Nf2 {[%emt 0:00:29]} Rd8 {[%emt 0:00:12]} 29. Rd1 {[%emt 0:01:12]} Nc5 {[%emt 0:02:48]} 30. Be2 {[%emt 0:03:27]} Rxd1 {[%emt 0:00:08] Not much happened in this game.   Weighted Error Value: White=0.05 (flawless) /Black=0.05 (flawless) .  Inaccurate:     	---       	Black=1      OK:         	White=12    	Black=9} 1/2-1/2

[Event "Hungarian U20 Junior-ch Men 2024"]
[Site "Budapest"]
[Date "2024.03.19"]
[Round "9.3"]
[White "Pasti, Aron"]
[Black "Kolimar, Kristof Pal"]
[Result "0-1"]
[ECO "B90"]
[WhiteElo "2373"]
[BlackElo "2282"]
[Annotator "TA"]
[PlyCount "86"]
[EventDate "2024.03.10"]
[EventType "tourn"]
[EventCountry "HUN"]
[SourceTitle "playchess.com"]
[Source "ChessBase"]
[SourceQuality "1"]
[TimeControl "40/5400+30:1800+30"]

{[%evp 20,86,0,0,28,22,27,35,31,31,52,0,20,13,26,0,12,-14,26,35,50,48,85,0,0,0,0,8,19,0,0,0,0,0,0,0,0,-67,0,0,0,-44,-40,-161,-175,-255,-255,-245,-211,-222,-236,-232,-239,-208,-213,-1327,-1327,-1319,-1291,-1214,-87,-1214,-1208,-1185,-1185,-1044,-1044,-29980,-29981]} 1. e4 {[%emt 0:00:37]} c5 {[%emt 0:00:35]} 2. Nf3 {[%emt 0:00:04]} d6 {[%emt 0:00:06]} 3. d4 {[%emt 0:00:02]} cxd4 {[%emt 0:00:06]} 4. Nxd4 {[%emt 0:00:02]} Nf6 {[%emt 0:00:08]} 5. Nc3 {[%emt 0:00:05]} a6 {[%emt 0:00:04]} 6. a4 {[%emt 0:00:32]} g6 {[%emt 0:00:07]} 7. Be2 {[%emt 0:02:58]} Bg7 {[%emt 0:00:09]} 8. O-O {[%emt 0:00:06]} O-O {[%emt 0:00:05]} 9. Be3 {[%emt 0:00:02][%cal Bc1e3,Be3d4,Bd4c3][%mdl 32]} Nc6 {[%emt 0:00:46]} 10. Nxc6 {[%emt 0:00:37]} bxc6 {[%emt 0:00:06]} 11. a5 {[%emt 0:00:01]} Nd7 {[%emt 0:07:51]} 12. Bd4 {[%emt 0:02:40]} Bh6 {[%emt 0:09:42]} 13. Na4 {[%emt 0:02:46]} c5 {[%emt 0:01:00] White is slightly better.} 14. Bc3 {[%emt 0:00:01]} Bb7 {[%emt 0:03:02]} 15. f3 {[%emt 0:00:01]} ({Better is} 15. Bg4 $14) 15... Bc6 {[%emt 0:04:18]} 16. Bc4 {[%emt 0:01:45]} Qb8 {[%emt 0:06:48]} 17. Ra3 {[%emt 0:05:22]} Bg7 {[%emt 0:05:02]} 18. Qe2 {[%emt 0:13:41]} Bxc3 {[%emt 0:08:04]} 19. Nxc3 {[%emt 0:00:11]} Qa7 {[%emt 0:03:51]} (19... Qxb2 $2 20. Rb3 $18) 20. f4 {[%emt 0:03:15]} Rab8 {[%emt 0:04:28]} 21. Kh1 {[%emt 0:14:56]} (21. b3 $1 $16) 21... Rxb2 $11 {[%emt 0:04:08]} 22. Bxa6 {[%emt 0:04:14]} e6 {[%emt 0:08:21]} 23. Bc4 {[%emt 0:04:32]} Nb6 {[%emt 0:02:29]} 24. Bb3 {[%emt 0:04:46]} c4 $1 {[%emt 0:07:53]} 25. Bxc4 {[%emt 0:02:58]} (25. axb6 Qxa3 26. Qxc4 Qc5 27. Qxc5 dxc5 $14) 25... Nxc4 {[%emt 0:00:04]} 26. Qxc4 {[%emt 0:00:02]} Rc8 {[%emt 0:01:02][%cal Oc6b7] aiming for ...Bb7!} 27. Qd3 {[%emt 0:12:04]} Qc5 {[%emt 0:01:12]} 28. Raa1 {[%emt 0:00:01]} (28. Na4 $11 Bxa4 (28... Qxa5 $2 29. Nxb2 Qb4 30. Nc4 $18) 29. Rxa4) 28... d5 {[%emt 0:06:42] Black has more active pieces.} (28... Rb4 $15 29. Rf3 d5) 29. exd5 {[%emt 0:12:34]} exd5 {[%emt 0:00:05] Hoping for ...d4.} 30. Rfd1 {[%emt 0:04:18][%cal Oc3e2]} d4 {[%emt 0:01:28]} 31. Qxd4 {[%emt 0:00:02]} ({White must play} 31. Ne4 $15 Qxc2 32. Qxc2 Rxc2 33. Nd2) 31... Bxg2+ $1 $19 {[%emt 0:08:37]} 32. Kxg2 {[%emt 0:00:00]} (32. Kg1 {is a better defense.} Rxc2 (32... Qxc3 33. Qxc3 Rxc3 34. Kxg2 $17) 33. Qxc5 Rxc5 34. Rd3 (34. Rdc1 $2 R5xc3 35. Rxc2 Rxc2 $19)) 32... Rxc2+ {[%emt 0:00:02]} 33. Kg1 {[%emt 0:00:01]} Qh5 {[%emt 0:01:25]} (33... Qxd4+ 34. Rxd4 R8xc3 35. Rda4 $11) 34. Rd2 {[%emt 0:00:06]} Qg4+ {[%emt 0:00:44]} (34... R2xc3 35. Rf1) 35. Kh1 {[%emt 0:02:05]} Qf3+ {[%emt 0:00:35]} ({Don't play} 35... R8xc3 36. Re1 Rc1 37. Qe5 Rxe1+ 38. Qxe1) (35... R2xc3 36. Rf1) (35... Rxd2 36. Qxd2 Qf3+ 37. Kg1 Rxc3 38. a6 $11) 36. Kg1 {[%emt 0:00:02]} R2xc3 {[%emt 0:00:56]} ({Don't do} 36... R8xc3 37. Re1 Rc1 38. Qe5 Qg4+ 39. Kh1 Rxe1+ 40. Qxe1) 37. Rf1 {[%emt 0:00:01]} (37. Re1) 37... Rc1 {[%emt 0:01:33]} 38. Rdf2 {[%emt 0:00:01]} Qg4+ {[%emt 0:02:04]} 39. Kh1 {[%emt 0:00:02]} Rxf1+ {[%emt 0:00:15]} 40. Rxf1 {[%emt 0:00:00] [#]} Rc2 $1 {[%emt 0:00:00][%csl Gc2][%cal Rg4g2]} 41. Qd8+ {[%emt 0:00:28]} Kg7 {[%emt 0:00:22][%csl Gc2][%cal Rg4g2]} 42. Qd4+ {[%emt 0:00:01] [#]} f6 $1 {[%emt 0:01:18]} 43. Qg1 {[%emt 0:00:07] Repels Qg2+} Qe2 {[%emt 0:00:10] Weighted Error Value: White=0.56/Black=0.08 (flawless) .  Mistake:       	White=6     	Black=1      Inaccurate:     	White=3     	Black=2      OK:         	White=11    	Black=8      Best:        	White=2     	Black=3      Strong:       	---       	Black=2} 0-1

[Event "Hungarian U20 Junior-ch Men 2024"]
[Site "Budapest"]
[Date "2024.03.19"]
[Round "9.4"]
[White "Gombocz, Ferenc Jr."]
[Black "Juhasz, Agoston"]
[Result "1/2-1/2"]
[ECO "D02"]
[WhiteElo "2351"]
[BlackElo "2406"]
[Annotator "TA"]
[PlyCount "61"]
[EventDate "2024.03.10"]
[EventType "tourn"]
[EventCountry "HUN"]
[SourceTitle "playchess.com"]
[Source "ChessBase"]
[SourceQuality "1"]
[TimeControl "40/5400+30:1800+30"]

{[%evp 10,61,22,13,19,15,37,11,15,6,17,7,4,0,0,0,0,-2,11,11,9,3,20,10,6,-12,17,12,13,0,0,-6,0,-1,0,0,0,0,0,0,0,0,0,0,0,0,0,0,0,0,0,-13,0,-17]} 1. d4 {[%emt 0:00:33]} Nf6 {[%emt 0:00:43]} 2. Nf3 {[%emt 0:00:07]} d5 {[%emt 0:00:29]} 3. Bf4 {[%emt 0:00:07]} c5 {[%emt 0:00:28]} 4. e3 {[%emt 0:00:08]} e6 {[%emt 0:00:44]} 5. c3 {[%emt 0:02:31]} Qb6 {[%emt 0:01:17]} 6. Qb3 {[%emt 0:01:15]} Bd7 {[%emt 0:00:57]} 7. Nbd2 {[%emt 0:01:53]} Bc6 {[%emt 0:00:22]} 8. Be2 {[%emt 0:01:59]} Nbd7 {[%emt 0:00:10] The position is equal.} 9. h3 {[%emt 0:03:29]} Be7 {[%emt 0:00:10]} 10. O-O {[%emt 0:00:33]} O-O {[%emt 0:00:08]} 11. Ne5 {[%emt 0:02:17]} Nxe5 {[%emt 0:04:41]} 12. Bxe5 {[%emt 0:02:15]} Rfc8 {[%emt 0:03:11]} 13. Bh2 {[%emt 0:05:18]} Be8 {[%emt 0:07:10]} 14. Qxb6 {[%emt 0:12:35]} axb6 {[%emt 0:00:04]} 15. a3 {[%emt 0:00:15]} Bd8 {[%emt 0:10:15]} 16. Bd3 {[%emt 0:05:46]} Bc6 {[%emt 0:09:53]} 17. Nf3 {[%emt 0:08:30]} Bc7 {[%emt 0:10:56]} 18. Bxc7 {[%emt 0:04:23]} Rxc7 {[%emt 0:00:18]} 19. Ne5 {[%emt 0:00:05]} Ne8 {[%emt 0:05:54][%cal Bf6e8,Be8d6,Bd6b5][%mdl 32]} 20. f4 {[%emt 0:14:55]} Nd6 {[%emt 0:01:51]} 21. g4 {[%emt 0:04:18]} f6 {[%emt 0:02:44]} 22. Nf3 {[%emt 0:00:32]} Bb5 {[%emt 0:01:17]} 23. Bxb5 {[%emt 0:01:45]} Nxb5 {[%emt 0:00:04]} 24. Rae1 {[%emt 0:01:51]} Nd6 {[%emt 0:01:01]} 25. Rf2 {[%emt 0:02:08]} Re8 {[%emt 0:18:06]} 26. Rg2 {[%emt 0:01:29]} Kf7 {[%emt 0:01:45]} 27. Ree2 {[%emt 0:01:49]} Rd7 {[%emt 0:00:40]} 28. Nd2 {[%emt 0:04:20]} Kg8 {[%emt 0:03:13]} 29. Nf3 {[%emt 0:01:26]} Kf7 {[%emt 0:00:47]} 30. Nd2 {[%emt 0:00:14]} Kg8 {[%emt 0:00:33]} 31. Nf3 {[%emt 0:00:36] Not much happened in this game.   Weighted Error Value: White=0.04 (flawless) /Black=0.04 (flawless) .  Inaccurate:     	White=1     	Black=1      OK:         	White=11    	Black=9      Best:        	---       	Black=1} 1/2-1/2